bitfinex-derivatives/quotes_BTCF0:USTF0_20210409
["timestamp","ask_amount","ask_price","bid_price","bid_amount"]
[1617944664667,3.65522732,58231.0,58230.0,1.23270637]
[1617944664870,3.64493,58231.0,58230.0,1.23270637]
[1617944665772,4.64493,58231.0,58230.0,1.23270637]
[1617944666268,5.01215709,58231.0,58230.0,1.23270637]
[1617944666668,1.51085709,58231.0,58230.0,1.23270637]
[1617944667068,1.51085709,58231.0,58230.0,4.17460637]
[1617944667267,1.61811364,58231.0,58230.0,4.17460637]
[1617944667669,1.47448364,58231.0,58230.0,4.26655349]
[1617944669170,1.47448364,58231.0,58230.0,1.32465349]
[1617944669571,1.47448364,58231.0,58230.0,4.10165349]
[1617944669773,1.47448364,58231.0,58230.0,4.00970637]
[1617944670374,1.47448364,58231.0,58230.0,3.57276816]
[1617944671175,0.36722709,58231.0,58230.0,3.57276816]
[1617944671675,0.36722709,58231.0,58230.0,4.009981]
[1617944671876,1.36722709,58231.0,58230.0,4.009981]
[1617944672176,1.67327596,58231.0,58230.0,4.30809447]
[1617944672581,1.91847794,58231.0,58230.0,3.87088163]
[1617944674478,1.91847794,58231.0,58230.0,1.09388163]
[1617944674978,5.27827794,58231.0,58230.0,1.09388163]
[1617944675181,5.72711695,58231.0,58230.0,1.09388163]
[1617944675980,5.27827794,58231.0,58230.0,1.09388163]
[1617944681887,1.91847794,58231.0,58230.0,1.09388163]
[1617944682088,0.91847794,58231.0,58230.0,3.61068163]
[1617944682697,0.91847794,58231.0,58230.0,4.13967519]
[1617944682698,0.30604887,58231.0,58230.0,4.13967519]
[1617944684286,1.30604887,58231.0,58230.0,4.13967519]
[1617944684486,1.30604887,58231.0,58230.0,1.62287519]
[1617944684816,1.30604887,58231.0,58230.0,1.35287519]
[1617944684817,5.56130887,58231.0,58230.0,1.35287519]
[1617944685287,5.56130887,58231.0,58230.0,0.71662508]
[1617944685288,5.92843932,58231.0,58230.0,0.71662508]
[1617944685687,6.37714262,58231.0,58230.0,0.65532757]
[1617944686189,6.37714262,58231.0,58230.0,0.29811347]
[1617944686388,3.73744262,58231.0,58230.0,0.29811347]
[1617944690492,3.73744262,58231.0,58228.0,0.29827289]
[1617944690894,0.61306588,58230.0,58229.0,0.2982708]
[1617944691095,2.11306588,58230.0,58229.0,0.2982708]
[1617944691394,2.22032243,58230.0,58229.0,0.2982708]
[1617944691596,3.34168894,58230.0,58229.0,0.2982708]
[1617944691894,2.97384941,58230.0,58229.0,0.2982708]
[1617944692395,3.34168829,58230.0,58229.0,0.2982708]
[1617944692795,4.34168829,58230.0,58229.0,0.2982708]
[1617944692996,4.34168829,58230.0,58228.0,0.2981672]
[1617944693399,2.73444232,58229.0,58227.0,0.2982075]
[1617944694099,1.36660401,58228.0,58227.0,0.2982075]
[1617944694598,1.36660401,58228.0,58225.0,0.419129]
[1617944695202,0.24522811,58228.0,58227.0,0.29805851]
[1617944695600,0.91805652,58228.0,58227.0,0.29805851]
[1617944695903,3.41805652,58228.0,58227.0,0.29805851]
[1617944696209,3.86657692,58228.0,58227.0,0.29805851]
[1617944697504,2.86657692,58228.0,58227.0,0.29805851]
[1617944697702,3.86657692,58228.0,58227.0,0.29805851]
[1617944698507,3.86657692,58228.0,58225.0,0.29814248]
[1617944699006,1.67252759,58226.0,58225.0,0.29814248]
[1617944699406,1.91775666,58226.0,58225.0,0.29814248]
[1617944699606,4.88945666,58226.0,58225.0,0.29814248]
[1617944700006,5.38945666,58226.0,58225.0,0.29814248]
[1617944700216,5.38945666,58226.0,58225.0,0.65575003]
[1617944700217,5.51478666,58226.0,58225.0,0.65575003]
[1617944700508,6.51478666,58226.0,58225.0,0.65575003]
[1617944700709,6.51478666,58226.0,58225.0,0.29814248]
[1617944702108,6.96316842,58226.0,58225.0,0.29814248]
[1617944702310,5.46316842,58226.0,58225.0,0.29814248]
[1617944703109,5.01478666,58226.0,58225.0,0.29814248]
[1617944703708,4.88945666,58226.0,58225.0,0.29814248]
[1617944705912,4.21692907,58226.0,58225.0,0.29814248]
[1617944709617,4.21692907,58226.0,58224.0,0.10725655]
[1617944709817,3.21692907,58226.0,58224.0,0.10725655]
[1617944710017,4.21692907,58226.0,58224.0,0.10725655]
[1617944710229,0.91770626,58225.0,58224.0,0.10725655]
[1617944710419,1.91770626,58225.0,58224.0,0.10725655]
[1617944711020,1.91770626,58225.0,58224.0,0.40540683]
[1617944714225,2.36610631,58225.0,58224.0,0.40540683]
[1617944715325,2.51964631,58225.0,58224.0,0.40540683]
[1617944716027,2.07124626,58225.0,58224.0,0.40540683]
[1617944722032,2.51964367,58225.0,58224.0,0.40540683]
[1617944722432,2.07124626,58225.0,58224.0,0.40540683]
[1617944722633,1.91770626,58225.0,58224.0,0.40540683]
[1617944724336,2.36610229,58225.0,58224.0,0.40540683]
[1617944724535,2.50002229,58225.0,58224.0,0.40540683]
[1617944725735,2.50002229,58225.0,58224.0,0.76434952]
[1617944727739,1.50002229,58225.0,58224.0,0.76434952]
[1617944727939,2.50002229,58225.0,58224.0,0.76434952]
[1617944730041,2.50002229,58225.0,58224.0,0.40540683]
[1617944731041,2.50002229,58225.0,58224.0,0.76450016]
[1617944731342,5.28212229,58225.0,58224.0,0.76450016]
[1617944731841,5.64997398,58225.0,58224.0,0.40540683]
[1617944732143,4.64997398,58225.0,58224.0,0.40540683]
[1617944732344,5.64997398,58225.0,58224.0,0.40540683]
[1617944732542,7.14997398,58225.0,58224.0,0.29815028]
[1617944733345,7.66016726,58225.0,58215.0,0.2999066]
[1617944733845,7.66016726,58225.0,58210.0,0.30022191]
[1617944733846,1.73995678,58216.0,58210.0,0.30022191]
[1617944734246,1.73995678,58216.0,58205.0,0.4217091]
[1617944734247,1.32658281,58211.0,58205.0,0.4217091]
[1617944734444,1.42579281,58211.0,58205.0,0.4217091]
[1617944734848,0.81637241,58206.0,58205.0,0.06131994]
[1617944735246,1.81637241,58206.0,58205.0,0.33131994]
[1617944735448,1.36737779,58206.0,58205.0,0.6915362]
[1617944735647,1.47463434,58206.0,58205.0,0.6915362]
[1617944735947,2.16889446,58206.0,58205.0,0.6915362]
[1617944736149,5.75159446,58206.0,58205.0,0.6915362]
[1617944736647,6.11951603,58206.0,58205.0,0.6915362]
[1617944737850,5.30260868,58206.0,58205.0,0.27]
[1617944740053,5.30260868,58206.0,58200.0,0.35966202]
[1617944740254,1.71990868,58206.0,58200.0,0.35966202]
[1617944740553,2.8171,58201.0,58200.0,0.35966202]
[1617944740755,3.18365112,58201.0,58198.0,0.35980989]
[1617944740954,3.18365112,58201.0,58200.0,0.27]
[1617944741155,3.18365112,58201.0,58198.0,0.35980989]
[1617944741456,3.18365112,58201.0,58197.0,0.35977564]
[1617944741457,3.42894914,58201.0,58197.0,0.35977564]
[1617944741655,3.42894914,58201.0,58199.0,0.26]
[1617944741856,0.61185694,58200.0,58198.0,0.27]
[1617944742358,3.2091,58198.0,58197.0,0.46703219]
[1617944742560,3.35831,58198.0,58197.0,0.46703219]
[1617944742758,4.35831,58198.0,58197.0,0.73703219]
[1617944743765,4.46556655,58198.0,58197.0,0.37725655]
[1617944749167,4.47582888,58198.0,58197.0,0.37725655]
[1617944749867,3.47582888,58198.0,58197.0,0.37725655]
[1617944750367,4.47582888,58198.0,58197.0,0.37725655]
[1617944750567,4.46556655,58198.0,58197.0,0.37725655]
[1617944750967,4.47582895,58198.0,58197.0,0.37725655]
[1617944752069,4.47582895,58198.0,58197.0,3.16905655]
[1617944752271,4.46556655,58198.0,58197.0,3.16905655]
[1617944752673,4.47582888,58198.0,58197.0,3.16905655]
[1617944753571,4.46556655,58198.0,58197.0,3.16905655]
[1617944754470,4.46556655,58198.0,58197.0,0.37725655]
[1617944754971,4.47582896,58198.0,58197.0,0.37725655]
[1617944755572,4.46556655,58198.0,58197.0,0.37725655]
[1617944757572,3.46556655,58198.0,58197.0,0.37725655]
[1617944757780,4.46556655,58198.0,58197.0,0.37725655]
[1617944758375,0.25646655,58198.0,58197.0,2.88225655]
[1617944758576,0.10725655,58198.0,58197.0,3.00936655]
[1617944758876,0.11243758,58198.0,58197.0,3.00936655]
[1617944759777,0.10725655,58198.0,58197.0,3.00936655]
[1617944759976,0.10725655,58198.0,58197.0,0.50436655]
[1617944760278,2.85865655,58198.0,58197.0,0.37725655]
[1617944760477,3.85865655,58198.0,58197.0,0.37725655]
[1617944760677,3.99235655,58198.0,58197.0,0.37725655]
[1617944762281,3.99753773,58198.0,58197.0,0.37725655]
[1617944762480,1.24613773,58198.0,58197.0,0.37725655]
[1617944762680,1.24095655,58198.0,58197.0,0.37725655]
[1617944762880,1.24095655,58198.0,58197.0,3.82315655]
[1617944763078,1.10725655,58198.0,58197.0,3.82315655]
[1617944763780,1.11751775,58198.0,58197.0,3.82315655]
[1617944764182,1.4121473,58198.0,58197.0,3.82315655]
[1617944764882,1.4121473,58198.0,58197.0,0.37725655]
[1617944765084,4.3594473,58198.0,58197.0,0.37725655]
[1617944767886,4.72535349,58198.0,58197.0,0.37725655]
[1617944768387,4.72535349,58198.0,58197.0,0.27]
[1617944768788,4.17258022,58198.0,58191.0,0.27]
[1617944769001,5.17258022,58198.0,58191.0,0.27]
[1617944769288,0.67090679,58192.0,58191.0,0.27]
[1617944769486,0.67090679,58192.0,58187.0,0.27]
[1617944769886,0.10725655,58188.0,58186.0,0.26]
[1617944770088,0.4122361,58188.0,58186.0,0.26]
[1617944770286,1.0,58185.0,58183.0,0.01]
[1617944770487,1.0,58185.0,58182.0,0.10725655]
[1617944770488,1.09495,58185.0,58182.0,0.10725655]
[1617944770689,1.0,58184.0,58183.0,0.27]
[1617944773491,1.09495,58185.0,58183.0,0.27]
[1617944773790,0.09495,58185.0,58183.0,0.27]
[1617944773990,1.0,58187.0,58183.0,0.27]
[1617944774390,4.0897,58184.0,58183.0,0.27]
[1617944774691,3.0897,58184.0,58183.0,0.27]
[1617944776693,4.0897,58184.0,58183.0,0.27]
[1617944778196,3.0897,58184.0,58183.0,0.27]
[1617944780600,4.0897,58184.0,58183.0,0.27]
[1617944781000,3.0897,58184.0,58183.0,0.27]
[1617944782504,4.0897,58184.0,58183.0,0.27]
[1617944783506,3.0897,58184.0,58183.0,0.27]
[1617944783709,4.0897,58184.0,58183.0,0.27]
[1617944785811,3.0897,58184.0,58183.0,0.27]
[1617944786611,4.09487864,58184.0,58183.0,0.27]
[1617944787911,4.39514542,58184.0,58183.0,0.57037136]
[1617944788315,4.39514542,58184.0,58183.0,0.27]
[1617944788316,4.76167906,58184.0,58183.0,0.27]
[1617944791521,3.76167906,58184.0,58183.0,0.27]
[1617944791722,4.76167906,58184.0,58183.0,0.27]
[1617944791922,4.76167906,58184.0,58180.0,0.3003656]
[1617944792124,5.20965037,58184.0,58176.0,0.30061905]
[1617944792523,1.0,58177.0,58176.0,0.30061905]
[1617944792723,1.3051534,58177.0,58173.0,0.30032616]
[1617944793023,1.3051534,58177.0,58176.0,0.27]
[1617944793223,1.3051534,58177.0,58174.0,0.31030964]
[1617944793424,1.3051534,58177.0,58174.0,0.30030964]
[1617944793722,1.3051534,58177.0,58172.0,0.10725655]
[1617944793723,1.3051534,58177.0,58176.0,0.27]
[1617944793923,1.41240995,58177.0,58175.0,0.01]
[1617944794123,0.41240995,58177.0,58176.0,0.27]
[1617944794525,1.0,58176.0,58174.0,0.30027232]
[1617944794824,1.0,58176.0,58175.0,0.26]
[1617944795024,0.01027023,58176.0,58174.0,0.30027232]
[1617944795225,1.01027023,58176.0,58174.0,0.30027232]
[1617944795427,1.0,58176.0,58175.0,0.27]
[1617944795626,0.41240995,58177.0,58175.0,0.27]
[1617944795828,0.30516116,58176.0,58174.0,0.01]
[1617944796427,1.01027032,58175.0,58174.0,0.01]
[1617944797628,1.0,58175.0,58174.0,0.31006933]
[1617944798028,1.0,58175.0,58174.0,0.30006933]
[1617944798230,1.0102761,58175.0,58174.0,0.30006933]
[1617944798431,1.0102761,58175.0,58174.0,0.57006933]
[1617944798832,0.30533236,58176.0,58174.0,0.57006933]
[1617944799332,0.30533236,58176.0,58175.0,0.30018812]
[1617944799733,0.30533236,58176.0,58175.0,0.57018812]
[1617944800836,1.30533236,58176.0,58175.0,0.57018812]
[1617944801749,1.30533236,58176.0,58175.0,0.27]
[1617944801938,1.6717241,58176.0,58175.0,0.27]
[1617944802138,1.6717241,58176.0,58173.0,0.27]
[1617944802539,1.6717241,58176.0,58172.0,0.4074729]
[1617944802540,1.6717241,58176.0,58175.0,0.27]
[1617944802741,1.6717241,58176.0,58173.0,0.27]
[1617944802942,0.30533854,58174.0,58173.0,0.27]
[1617944803240,0.44205854,58174.0,58172.0,0.4074729]
[1617944803440,4.14565854,58174.0,58173.0,0.27]
[1617944804343,4.14565854,58174.0,58170.0,0.30005196]
[1617944804644,5.51187367,58174.0,58168.0,0.30017453]
[1617944805143,0.01027154,58169.0,58167.0,0.3002518]
[1617944805745,0.305197,58170.0,58168.0,0.27]
[1617944806043,0.10725655,58169.0,58168.0,0.27]
[1617944806244,0.41245669,58169.0,58168.0,0.27]
[1617944806445,1.41245669,58169.0,58168.0,0.27]
[1617944806644,1.10725655,58169.0,58168.0,0.27]
[1617944807047,1.41245661,58169.0,58168.0,0.27]
[1617944807644,1.46355661,58169.0,58165.0,0.30033751]
[1617944807847,1.46355661,58169.0,58166.0,0.27]
[1617944808044,1.46355661,58169.0,58168.0,0.27]
[1617944808245,1.10725655,58169.0,58165.0,0.30036686]
[1617944808445,1.0,58167.0,58165.0,0.56036686]
[1617944808645,0.00518708,58166.0,58165.0,0.30036686]
[1617944809049,0.30525696,58166.0,58165.0,0.27]
[1617944809467,1.30525696,58166.0,58163.0,0.27]
[1617944809662,0.30525696,58166.0,58163.0,0.27]
[1617944809845,0.30525696,58166.0,58162.0,0.30056507]
[1617944809846,0.30525696,58166.0,58165.0,2.8937]
[1617944810051,0.01027309,58166.0,58165.0,3.12485802]
[1617944810346,0.01027309,58166.0,58165.0,3.39485802]
[1617944810547,1.00518728,58166.0,58165.0,3.39485802]
[1617944811147,1.0,58166.0,58165.0,3.39485802]
[1617944811548,1.00518725,58167.0,58165.0,0.77115802]
[1617944811847,3.1661,58166.0,58165.0,0.67764802]
[1617944812047,3.1661,58166.0,58165.0,0.37725655]
[1617944812546,3.1661,58166.0,58165.0,0.67725495]
[1617944813347,4.1661,58166.0,58165.0,0.67725495]
[1617944814149,4.17128538,58166.0,58165.0,0.67725495]
[1617944814647,4.1661,58166.0,58165.0,0.37725655]
[1617944815047,4.17128542,58166.0,58165.0,0.37725655]
[1617944815747,4.1661,58166.0,58165.0,0.67697619]
[1617944818352,4.17128553,58166.0,58165.0,0.37725655]
[1617944818752,4.17636945,58166.0,58165.0,0.10725655]
[1617944818952,4.17636945,58166.0,58163.0,0.29981601]
[1617944819254,4.47123584,58166.0,58162.0,0.29982398]
[1617944819854,1.00518574,58163.0,58161.0,0.29987945]
[1617944820055,0.10725655,58162.0,58161.0,0.29987945]
[1617944820258,0.10725655,58162.0,58161.0,0.36061697]
[1617944820655,1.41304569,58162.0,58161.0,0.66114384]
[1617944821555,4.78517316,58162.0,58161.0,0.30052687]
[1617944821756,3.78517316,58162.0,58161.0,0.30052687]
[1617944821960,3.41824569,58162.0,58161.0,0.66112239]
[1617944823258,4.11245655,58162.0,58161.0,0.66112239]
[1617944824059,0.30577988,58163.0,58161.0,0.66112239]
[1617944824262,0.30577988,58163.0,58162.0,2.9404]
[1617944824761,0.36691548,58166.0,58162.0,2.9404]
[1617944824762,0.36691548,58166.0,58162.0,3.93276008]
[1617944824763,0.30577815,58164.0,58162.0,3.93276008]
[1617944825169,0.30577815,58164.0,58163.0,0.72232627]
[1617944825661,0.01028739,58164.0,58163.0,0.99232627]
[1617944826060,0.00519461,58164.0,58163.0,0.99232627]
[1617944827164,0.00519461,58164.0,58163.0,0.69188955]
[1617944827367,0.00519461,58164.0,58163.0,0.99204337]
[1617944831571,0.00519461,58164.0,58163.0,1.19204337]
[1617944831974,0.00519461,58164.0,58163.0,2.69204337]
[1617944832172,0.00519527,58167.0,58163.0,3.13126054]
[1617944832573,0.00519527,58167.0,58166.0,0.65880826]
[1617944833074,0.00519518,58168.0,58166.0,1.12880826]
[1617944833873,0.00519518,58168.0,58167.0,0.71975927]
[1617944834072,0.00519518,58168.0,58167.0,0.91975927]
[1617944834275,0.00519518,58168.0,58167.0,1.29701582]
[1617944834472,0.00519518,58168.0,58167.0,1.09701582]
[1617944835273,0.00519518,58168.0,58167.0,0.79774452]
[1617944835474,0.01028846,58168.0,58167.0,0.79774452]
[1617944839281,0.30569982,58169.0,58167.0,0.79774452]
[1617944839579,0.3058112,58168.0,58167.0,0.79774452]
[1617944839779,0.3058112,58168.0,58167.0,0.37725655]
[1617944840279,0.3058112,58168.0,58167.0,1.03835914]
[1617944841181,0.67337395,58168.0,58167.0,1.48015258]
[1617944846785,3.24127395,58168.0,58167.0,1.48015258]
[1617944847386,3.48672095,58168.0,58167.0,1.48015258]
[1617944847787,0.91882095,58168.0,58167.0,1.48015258]
[1617944848194,0.91882095,58168.0,58167.0,4.99655258]
[1617944848398,0.67337395,58168.0,58167.0,4.99655258]
[1617944848797,0.67337395,58168.0,58167.0,5.08859521]
[1617944852393,0.67337395,58168.0,58167.0,5.22189521]
[1617944853393,0.67337395,58168.0,58167.0,6.92189521]
[1617944853837,0.3058112,58168.0,58167.0,6.92189521]
[1617944854293,0.36774672,58169.0,58167.0,6.92189521]
[1617944854294,0.00520817,58169.0,58167.0,7.42406245]
[1617944854893,0.00520799,58171.0,58168.0,1.84170812]
[1617944855092,0.00520799,58171.0,58169.0,1.7]
[1617944855314,0.00520799,58171.0,58170.0,1.60635622]
[1617944855492,0.00520799,58171.0,58170.0,3.30635622]
[1617944855793,0.00520799,58171.0,58170.0,4.72973867]
[1617944856695,0.00520799,58172.0,58170.0,4.72973867]
[1617944856996,0.00520799,58172.0,58171.0,2.75921564]
[1617944857318,0.00520799,58172.0,58171.0,3.45921564]
[1617944857598,0.01031383,58172.0,58171.0,3.72921564]
[1617944858799,0.00520189,58173.0,58171.0,3.72921564]
[1617944859297,0.00520189,58174.0,58172.0,1.25605434]
[1617944859597,0.00520189,58174.0,58173.0,0.2]
[1617944859799,0.00520189,58174.0,58173.0,1.57264477]
[1617944860199,0.00520189,58174.0,58173.0,1.63399787]
[1617944860399,0.00520189,58174.0,58173.0,1.74125442]
[1617944863305,0.00520045,58175.0,58173.0,1.74125442]
[1617944864105,0.00520045,58175.0,58174.0,1.16405788]
[1617944864607,0.01029904,58175.0,58174.0,1.43405788]
[1617944865207,0.01029904,58175.0,58174.0,1.63405788]
[1617944865407,0.01029904,58175.0,58174.0,1.43405788]
[1617944867110,0.01029904,58175.0,58174.0,1.53218788]
[1617944867414,0.00520049,58175.0,58174.0,4.22398788]
[1617944867710,0.00520049,58175.0,58174.0,4.31601739]
[1617944869116,0.01029901,58176.0,58174.0,4.31601739]
[1617944869316,0.01029901,58176.0,58174.0,1.62421739]
[1617944869517,0.01029901,58176.0,58175.0,1.25606341]
[1617944869920,0.01029474,58177.0,58175.0,1.4340339]
[1617944870218,0.01029474,58177.0,58176.0,3.0232]
[1617944870418,0.01029474,58177.0,58176.0,4.18677747]
[1617944870618,0.01029474,58177.0,58176.0,4.45677747]
[1617944871018,0.01029474,58177.0,58176.0,4.54880695]
[1617944871517,0.01029474,58177.0,58176.0,1.52560695]
[1617944872321,0.01029474,58177.0,58176.0,1.43357747]
[1617944875522,0.3058435,58177.0,58176.0,0.99268767]
[1617944878223,0.67284358,58177.0,58176.0,0.99268767]
[1617944878724,0.3058435,58177.0,58176.0,0.99268767]
[1617944883429,1.3058435,58177.0,58176.0,0.99268767]
[1617944883631,4.1141435,58177.0,58176.0,0.99268767]
[1617944883832,3.1141435,58177.0,58176.0,0.99268767]
[1617944884131,3.72658488,58177.0,58176.0,0.99268767]
[1617944885633,0.91828488,58177.0,58176.0,0.99268767]
[1617944885931,0.91828488,58177.0,58176.0,4.60538767]
[1617944886631,0.67285635,58177.0,58176.0,4.60538767]
[1617944887131,0.91828357,58177.0,58176.0,4.60538767]
[1617944887332,0.67285635,58177.0,58176.0,4.60538767]
[1617944901852,0.67285635,58177.0,58176.0,5.05089303]
[1617944905057,0.67285635,58177.0,58176.0,4.60538767]
[1617944907861,1.12234445,58177.0,58176.0,5.05153187]
[1617944908862,0.67285635,58177.0,58176.0,5.05153187]
[1617944910161,0.91827996,58177.0,58176.0,5.05153187]
[1617944910360,0.91827996,58177.0,58176.0,5.15949187]
[1617944910560,0.67285635,58177.0,58176.0,5.15949187]
[1617944912667,0.67285635,58177.0,58176.0,5.05153187]
[1617944917975,1.12241242,58177.0,58176.0,5.05153187]
[1617944919178,0.67285635,58177.0,58176.0,5.05153187]
[1617944920680,1.12242294,58177.0,58176.0,5.05153187]
[1617944921582,0.67285635,58177.0,58176.0,5.05153187]
[1617944921985,0.91828255,58177.0,58176.0,5.05153187]
[1617944922486,0.67285635,58177.0,58176.0,5.05153187]
[1617944925089,0.67285635,58177.0,58176.0,5.14667187]
[1617944927291,0.67285635,58177.0,58176.0,5.05153187]
[1617944928793,1.12248723,58177.0,58176.0,5.05153187]
[1617944935101,2.12248723,58177.0,58176.0,5.05153187]
[1617944935300,1.12248723,58177.0,58176.0,5.05153187]
[1617944935504,1.36791514,58177.0,58176.0,5.05153187]
[1617944935903,1.12248723,58177.0,58176.0,5.05153187]
[1617944936503,2.12248723,58177.0,58176.0,1.43883187]
[1617944936702,5.05418723,58177.0,58176.0,1.43883187]
[1617944937404,5.66776228,58177.0,58176.0,1.43883187]
[1617944937704,5.66776228,58177.0,58176.0,1.54608842]
[1617944938305,2.73606228,58177.0,58176.0,1.54608842]
[1617944938805,2.36791725,58177.0,58176.0,4.04238842]
[1617944939105,2.87918126,58177.0,58176.0,3.59624422]
[1617944940005,2.87918126,58177.0,58176.0,1.09994422]
[1617944941906,2.36791725,58177.0,58176.0,1.54711577]
[1617944943008,1.36791725,58177.0,58176.0,1.54711577]
[1617944943212,2.36791725,58177.0,58176.0,1.54711577]
[1617944946214,2.36791725,58177.0,58176.0,1.09994422]
[1617944963844,1.36791725,58177.0,58176.0,1.09994422]
[1617944964044,2.36791725,58177.0,58176.0,1.09994422]
[1617944964243,1.36791725,58177.0,58176.0,1.09994422]
[1617944964642,0.91828637,58177.0,58176.0,1.5462821]
[1617944965643,0.91828637,58177.0,58176.0,5.2080821]
[1617944965842,0.91828637,58177.0,58176.0,5.3555721]
[1617944966043,0.67285635,58177.0,58176.0,5.3555721]
[1617944966656,0.67285635,58177.0,58176.0,5.44759968]
[1617944967062,0.3058435,58177.0,58176.0,5.95435519]
[1617944973354,0.3058435,58177.0,58176.0,5.44759968]
[1617944974156,0.3058435,58177.0,58176.0,5.95536417]
[1617944974556,0.3058435,58177.0,58176.0,5.44759968]
[1617944975659,0.3058435,58177.0,58176.0,5.30010968]
[1617944980164,0.3061885,58178.0,58176.0,5.80789669]
[1617944981064,0.30554671,58178.0,58177.0,1.27056944]
[1617944981464,0.30554671,58178.0,58177.0,1.54056944]
[1617944984572,4.51854671,58178.0,58177.0,1.54056944]
[1617944984771,4.88583411,58178.0,58177.0,1.44854324]
[1617944985272,5.13124753,58178.0,58177.0,1.44854324]
[1617944985672,5.13124753,58178.0,58177.0,1.00166627]
[1617944986476,5.25868753,58178.0,58177.0,1.00166627]
[1617944986974,5.70762414,58178.0,58177.0,1.00166627]
[1617944987174,2.49462414,58178.0,58177.0,1.00166627]
[1617944987673,2.49462414,58178.0,58177.0,0.63603965]
[1617944990579,1.49462414,58178.0,58177.0,0.63603965]
[1617944990979,2.49462414,58178.0,58177.0,0.63603965]
[1617944991182,2.49462414,58178.0,58177.0,0.57468885]
[1617944992080,2.60188069,58178.0,58177.0,0.57468885]
[1617944997388,2.60188069,58178.0,58177.0,0.27]
[1617945000591,1.60188069,58178.0,58177.0,0.27]
[1617945000792,2.60188069,58178.0,58177.0,0.27]
[1617945002393,1.60188069,58178.0,58177.0,0.27]
[1617945002594,2.47444069,58178.0,58177.0,0.27]
[1617945006695,1.47444069,58178.0,58177.0,0.27]
[1617945006896,1.36718414,58178.0,58177.0,3.5559]
[1617945007499,0.67283411,58178.0,58177.0,3.9216504]
[1617945007810,0.67283411,58178.0,58177.0,0.6357504]
[1617945007999,3.83355607,58178.0,58177.0,1.08265889]
[1617945008399,5.20069207,58178.0,58177.0,0.6357504]
[1617945008599,4.20069207,58178.0,58177.0,0.6357504]
[1617945008801,5.20069207,58178.0,58177.0,0.6357504]
[1617945009001,5.64940668,58178.0,58177.0,0.33135826]
[1617945009400,5.64940668,58178.0,58177.0,0.27]
[1617945012202,5.64940668,58178.0,58177.0,0.57516613]
[1617945014304,5.64940668,58178.0,58177.0,0.27]
[1617945015907,5.64940668,58178.0,58177.0,0.57520806]
[1617945022816,5.64940668,58178.0,58177.0,0.27]
[1617945025822,2.36680668,58178.0,58177.0,0.27]
[1617945029226,2.36680668,58178.0,58176.0,0.10725655]
[1617945030029,1.36691874,58177.0,58176.0,0.10725655]
[1617945030226,1.48371874,58177.0,58176.0,0.10725655]
[1617945031527,2.48371874,58177.0,58176.0,0.10725655]
[1617945034129,2.48371874,58177.0,58176.0,0.41281023]
[1617945036034,1.48371874,58177.0,58176.0,0.10725655]
[1617945036231,2.48371874,58177.0,58176.0,0.10725655]
[1617945037430,2.48371874,58177.0,58176.0,0.41291931]
[1617945039732,2.48371874,58177.0,58176.0,0.10725655]
[1617945040634,2.48371874,58177.0,58176.0,0.41285635]
[1617945042137,2.48371874,58177.0,58176.0,0.10725655]
[1617945042838,2.99376279,58177.0,58176.0,0.10725655]
[1617945043239,2.48371874,58177.0,58176.0,0.10725655]
[1617945044539,2.99492526,58177.0,58176.0,0.78156869]
[1617945047647,2.99492526,58177.0,58176.0,3.51646869]
[1617945051751,1.99492526,58177.0,58176.0,3.51646869]
[1617945051950,2.99492526,58177.0,58176.0,3.51646869]
[1617945054850,2.99492526,58177.0,58176.0,0.78156869]
[1617945060455,2.48371874,58177.0,58176.0,0.78156869]
[1617945060655,2.85182831,58177.0,58176.0,1.23091779]
[1617945061155,1.1168,58177.0,58176.0,0.10725655]
[1617945061355,1.0,58177.0,58176.0,0.10725655]
[1617945061755,2.12447631,58177.0,58176.0,1.23061846]
[1617945064658,1.12447631,58177.0,58176.0,1.23061846]
[1617945065058,2.12447631,58177.0,58176.0,1.23061846]
[1617945065759,2.36988411,58177.0,58176.0,1.23061846]
[1617945066260,1.36988411,58177.0,58176.0,1.23061846]
[1617945066662,1.12447631,58177.0,58176.0,1.23061846]
[1617945069370,1.36986473,58177.0,58176.0,1.23061846]
[1617945069771,1.12447631,58177.0,58176.0,1.23061846]
[1617945070772,2.12447631,58177.0,58176.0,1.23061846]
[1617945070974,2.12447631,58177.0,58176.0,1.12336191]
[1617945071574,2.36986683,58177.0,58176.0,1.23061846]
[1617945071974,2.36986683,58177.0,58176.0,1.12336191]
[1617945072276,2.36986683,58177.0,58176.0,0.67401715]
[1617945072675,1.36986683,58177.0,58176.0,0.67401715]
[1617945072876,1.36986683,58177.0,58176.0,1.12291637]
[1617945073376,1.12447631,58177.0,58176.0,1.12291637]
[1617945073577,1.12447631,58177.0,58176.0,1.23017292]
[1617945073780,1.36986528,58177.0,58176.0,1.23017292]
[1617945073980,2.36986528,58177.0,58176.0,1.23017292]
[1617945074178,2.36986528,58177.0,58176.0,1.2915202]
[1617945076283,2.36986528,58177.0,58176.0,0.84262098]
[1617945076884,1.36986528,58177.0,58176.0,0.84262098]
[1617945077082,2.36986528,58177.0,58176.0,0.84262098]
[1617945077282,2.12447631,58177.0,58176.0,1.29156913]
[1617945077782,2.36986548,58177.0,58176.0,1.29156913]
[1617945078681,5.43151548,58177.0,58176.0,1.29156913]
[1617945078882,5.43151548,58177.0,58176.0,0.84262098]
[1617945079282,5.7995985,58177.0,58176.0,0.84262098]
[1617945079682,5.7995985,58177.0,58176.0,1.29181949]
[1617945081685,5.7995985,58177.0,58176.0,0.84262098]
[1617945085392,5.7995985,58177.0,58176.0,0.79822098]
[1617945101404,4.7995985,58177.0,58176.0,0.79822098]
[1617945103306,1.8341985,58177.0,58176.0,0.79822098]
[1617945103506,1.7379485,58177.0,58176.0,3.70732098]
[1617945103906,1.36986548,58177.0,58176.0,3.70732098]
[1617945105208,1.36986548,58177.0,58176.0,1.24771227]
[1617945105607,4.84486548,58177.0,58176.0,1.24771227]
[1617945106208,5.21294327,58177.0,58176.0,1.24771227]
[1617945107610,3.475,58177.0,58176.0,0.10725655]
[1617945108011,4.22997588,58177.0,58176.0,0.86322106]
[1617945109522,0.75497588,58177.0,58176.0,1.01427106]
[1617945109715,0.75497588,58177.0,58176.0,4.41717106]
[1617945109912,0.75497588,58177.0,58176.0,4.68717106]
[1617945110414,0.3060906,58177.0,58176.0,4.88717106]
[1617945110731,0.01031663,58177.0,58176.0,5.85740852]
[1617945111625,0.30653664,58178.0,58176.0,5.85740852]
[1617945111626,0.01031656,58178.0,58176.0,5.85740852]
[1617945111915,0.01031656,58178.0,58177.0,0.36755654]
[1617945112128,0.01031656,58178.0,58177.0,1.98692771]
[1617945112317,0.01031656,58178.0,58177.0,2.25692771]
[1617945113015,0.01031656,58178.0,58177.0,2.40004709]
[1617945113214,0.01031656,58178.0,58177.0,5.40574709]
[1617945113515,0.01031622,58179.0,58178.0,1.0]
[1617945113714,0.30652908,58180.0,58179.0,1.68968378]